fUST/lending_fUST_20250306
["ID","MTS","AMOUNT","RATE_DAILY","PERIOD"]
[355471956,1741193442791,-500.0,0.00038356,9]
[355471958,1741193442800,-1555.81,0.00038356,9]
[355471960,1741193442809,-500.0,0.00038356,9]
[355471962,1741193442818,-500.0,0.00038356,9]
[355471964,1741193442827,-507.4693768,0.00038356,9]
[355471966,1741193442838,-500.0,0.00038356,9]
[355471968,1741193442847,-3212.79,0.00038356,9]
[355471970,1741193442856,-500.0,0.00038356,9]
[355471972,1741193442866,-500.0,0.00038356,9]
[355471975,1741193442876,-500.0,0.00038356,9]
[355471978,1741193442885,-692.02,0.00038356,9]
[355471981,1741193442895,-620.9,0.00038356,9]
[355471985,1741193442904,-500.0,0.00038356,9]
[355471987,1741193442913,-96087.64,0.00038356,7]
[355471990,1741193442923,-500.0,0.00038356,9]
[355471993,1741193442932,-500.0,0.00038356,9]
[355471995,1741193442941,-506.2746138,0.00038356,9]
[355471997,1741193442950,-500.0,0.00038356,9]
[355471999,1741193442960,-500.0,0.00038356,9]
[355472001,1741193442969,-5902.74,0.00038356,9]
[355472003,1741193442979,-8250.54,0.00038356,9]
[355472005,1741193442988,-500.0,0.00038356,9]
[355472008,1741193443001,-500.0,0.00038356,9]
[355472009,1741193443011,-500.0,0.00038356,9]
[355472011,1741193443020,-500.0,0.00038356,9]
[355472013,1741193443030,-500.0,0.00038356,9]
[355472015,1741193443040,-506.2752855,0.00038356,9]
[355472017,1741193443052,-500.0,0.00038356,9]
[355472020,1741193443062,-500.0,0.00038356,9]
[355472022,1741193443072,-500.0,0.00038356,9]
[355472024,1741193443082,-3900.72,0.00038356,9]
[355472026,1741193443093,-2116.15,0.00038356,9]
[355472028,1741193443103,-500.0,0.00038356,9]
[355472030,1741193443112,-500.0,0.00038356,9]
[355472032,1741193443122,-500.0,0.00038356,9]
[355472034,1741193443131,-500.0,0.00038356,9]
[355472036,1741193443141,-187.51525982,0.00038356,9]
[355472038,1741193443150,-502.78399697,0.00038356,9]
[355472040,1741193443159,-500.0,0.00038356,9]
[355472042,1741193443169,-500.0,0.00038356,9]
[355472044,1741193443178,-1203.66,0.00038356,9]
[355472046,1741193443188,-524.53507004,0.00038356,9]
[355472048,1741193443197,-583.15,0.00038356,9]
[355472050,1741193443206,-500.0,0.00038356,9]
[355472052,1741193443216,-500.0,0.00038356,9]
[355472054,1741193443225,-506.07395047,0.00038356,9]
[355472056,1741193443235,-779.82,0.00038356,9]
[355472058,1741193443244,-500.402,0.00038356,2]
[355472060,1741193443254,-500.0,0.00038356,9]
[355472062,1741193443263,-1497.03,0.00038356,9]
[355472064,1741193443272,-500.0,0.00038356,9]
[355472066,1741193443281,-395.52033233,0.00038356,9]
[355472068,1741193443290,-500.0,0.00038356,9]
[355472070,1741193443300,-500.0,0.00038356,9]
[355472072,1741193443309,-500.0,0.00038356,9]
[355472074,1741193443319,-1072.27,0.00038356,9]
[355472076,1741193443328,-246.68000483,0.00038356,2]
[355472077,1741193443339,-500.70047773,0.00038373,5]
[355472078,1741193443348,-500.0,0.00038373,5]
[355472079,1741193443357,-500.0,0.00038373,2]
[355472080,1741193443367,-500.0,0.00038373,5]
[355472081,1741193443376,-552.48034448,0.00038373,5]
[355472082,1741193443385,-429.57581091,0.00038373,5]
[355472083,1741193443394,-500.0,0.00038373,2]
[355472084,1741193443403,-500.0,0.00038373,5]
[355472085,1741193443412,-500.0,0.00038373,5]
[355472086,1741193443422,-500.0,0.00038373,5]
[355472087,1741193443431,-500.0,0.00038373,5]
[355472088,1741193443440,-500.0,0.00038373,5]
[355472089,1741193443449,-864.93,0.000384,30]
[355472090,1741193443458,-151.0,0.000384,18]
[355472091,1741193443467,-1960.0,0.00038443,2]
[355472092,1741193443477,-539.0,0.00038443,2]
[355472093,1741193443486,-2279.0,0.00038443,2]
[355472094,1741193443497,-943.68419089,0.00038486,2]
[355472095,1741193443506,-1000.0,0.000385,5]
[355472096,1741193443515,-151.0,0.000385,15]
[355472097,1741193443524,-151.0,0.000385,16]
[355472098,1741193443533,-3000.0,0.0003853,2]
[355472099,1741193443543,-1042.79,0.00038629,120]
[355472101,1741193443552,-151.0,0.0003863,14]
[355472103,1741193443561,-151.0,0.0003863,14]
[355472105,1741193443570,-500.0,0.0003863,9]
[355472107,1741193443579,-500.0,0.0003863,9]
[355472109,1741193443589,-500.0,0.0003863,9]
[355472111,1741193443598,-500.0,0.0003863,9]
[355472113,1741193443608,-500.0,0.0003863,9]
[355472115,1741193443617,-500.0,0.0003863,9]
[355472117,1741193443626,-500.0,0.0003863,9]
[355472119,1741193443636,-500.0,0.0003863,9]
[355472121,1741193443646,-500.0,0.0003863,9]
[355472122,1741193443656,-500.0,0.0003863,9]
[355472124,1741193443666,-190.19878588,0.0003863,2]
[355472127,1741193443676,-500.0,0.0003863,9]
[355472128,1741193443686,-525.97,0.0003863,9]
[355472130,1741193443695,-500.0,0.0003863,9]
[355472132,1741193443704,-500.0,0.0003863,9]
[355472134,1741193443714,-500.0,0.0003863,9]
[355472136,1741193443723,-500.0,0.0003863,9]
[355472138,1741193443733,-500.0,0.0003863,9]
[355472141,1741193443744,-500.0,0.0003863,9]
[355472142,1741193443754,-500.0,0.0003863,9]
[355472145,1741193443764,-500.0,0.0003863,9]
[355472147,1741193443773,-500.0,0.0003863,9]
[355472149,1741193443782,-500.0,0.0003863,9]
[355472151,1741193443793,-500.0,0.0003863,9]
[355472153,1741193443802,-500.0,0.0003863,9]
[355472155,1741193443811,-500.0,0.0003863,9]
[355472157,1741193443821,-151.0,0.0003863,14]
[355472159,1741193443830,-151.0,0.0003863,14]
[355472161,1741193443839,-500.0,0.0003863,9]
[355472162,1741193443849,-500.0,0.0003863,9]
[355472164,1741193443858,-500.0,0.0003863,9]
[355472167,1741193443868,-500.0,0.0003863,9]
[355472169,1741193443878,-798.37,0.0003863,9]
[355472171,1741193443887,-500.0,0.0003863,9]
[355472173,1741193443897,-500.0,0.0003863,9]
[355472175,1741193443907,-680.63,0.0003863,9]
[355472177,1741193443917,-500.0,0.0003863,120]
[355472179,1741193443927,-502.21391993,0.0003863,9]
[355472181,1741193443936,-500.0,0.0003863,9]
[355472183,1741193443945,-595.64,0.0003863,9]
[355472185,1741193443955,-500.0,0.0003863,9]
[355472187,1741193443964,-500.0,0.0003863,9]
[355472189,1741193443973,-500.0,0.0003863,9]
[355472191,1741193443983,-500.0,0.0003863,9]
[355472193,1741193443993,-500.0,0.0003863,9]
[355472195,1741193444007,-500.0,0.0003863,9]
[355472197,1741193444016,-512.61975895,0.0003863,9]
[355472199,1741193444026,-500.0,0.0003863,9]
[355472201,1741193444035,-500.0,0.0003863,9]
[355472203,1741193444045,-500.0,0.0003863,9]
[355472205,1741193444055,-500.0,0.0003863,9]
[355472207,1741193444064,-500.0,0.0003863,9]
[355472209,1741193444074,-500.0,0.0003863,9]
[355472211,1741193444084,-387.14274365,0.0003863,9]
[355472213,1741193444097,-500.0,0.0003863,9]
[355472215,1741193444107,-500.0,0.0003863,9]
[355472217,1741193444117,-762.21,0.0003863,9]
[355472219,1741193444127,-502.97926846,0.0003863,9]
[355472221,1741193444137,-500.0,0.0003863,9]
[355472223,1741193444146,-500.0,0.0003863,9]
[355472225,1741193444155,-500.0,0.0003863,9]
[355472227,1741193444165,-500.0,0.0003863,9]
[355472229,1741193444174,-619.95,0.0003863,9]
[355472231,1741193444183,-500.0,0.0003863,9]
[355472233,1741193444193,-500.0,0.0003863,9]
[355472235,1741193444203,-500.0,0.0003863,9]
[355472237,1741193444212,-500.0,0.0003863,9]
[355472239,1741193444222,-500.0,0.0003863,9]
[355472241,1741193444231,-500.0,0.0003863,9]
[355472243,1741193444240,-500.0,0.0003863,9]
[355472245,1741193444250,-500.0,0.0003863,9]
[355472247,1741193444259,-500.0,0.0003863,9]
[355472249,1741193444268,-500.0,0.0003863,9]
[355472251,1741193444278,-500.0,0.0003863,9]
[355472253,1741193444287,-500.0,0.0003863,9]
[355472255,1741193444297,-500.0,0.0003863,9]
[355472257,1741193444306,-500.0,0.0003863,9]
[355472259,1741193444315,-500.0,0.0003863,9]
[355472261,1741193444324,-500.0,0.0003863,9]
[355472263,1741193444333,-644.5,0.0003863,9]
[355472265,1741193444345,-500.0,0.0003863,9]
[355472266,1741193444355,-500.0,0.0003863,120]
[355472268,1741193444364,-500.0,0.0003863,9]
[355472270,1741193444374,-500.0,0.0003863,9]
[355472272,1741193444384,-500.0,0.0003863,9]
[355472274,1741193444394,-500.0,0.0003863,9]
[355472276,1741193444403,-500.0,0.0003863,9]
[355472278,1741193444414,-500.0,0.0003863,9]
[355472280,1741193444423,-500.0,0.0003863,9]
[355472282,1741193444433,-500.0,0.0003863,9]
[355472285,1741193444443,-500.0,0.0003863,9]
[355472286,1741193444453,-556.68,0.0003863,9]
[355472288,1741193444462,-500.0,0.0003863,9]
[355472290,1741193444472,-500.0,0.0003863,9]
[355472292,1741193444482,-500.0,0.0003863,9]
[355472294,1741193444492,-500.0,0.0003863,9]
[355472296,1741193444501,-500.0,0.0003863,9]
[355472298,1741193444511,-500.0,0.0003863,9]
[355472300,1741193444520,-1078.61,0.0003863,9]
[355472302,1741193444529,-500.0,0.0003863,9]
[355472304,1741193444538,-503.26998813,0.0003863,9]
[355472306,1741193444547,-500.0,0.0003863,9]
[355472308,1741193444557,-489.7277911,0.0003863,9]
[355472310,1741193444566,-500.0,0.0003863,9]
[355472312,1741193444575,-922.66,0.0003863,9]
[355472314,1741193444586,-939.34,0.0003863,9]
[355472316,1741193444597,-500.0,0.0003863,9]
[355472318,1741193444607,-500.0,0.0003863,9]
[355472320,1741193444616,-500.0,0.0003863,9]
[355472322,1741193444625,-951.01,0.0003863,9]
[355472324,1741193444634,-500.0,0.0003863,9]
[355472326,1741193444643,-500.0,0.0003863,9]
[355472328,1741193444652,-500.0,0.0003863,9]
[355472330,1741193444662,-532.37,0.0003863,9]
[355472332,1741193444671,-500.0,0.0003863,9]
[355472334,1741193444681,-500.0,0.0003863,9]
[355472336,1741193444690,-500.0,0.0003863,9]
[355472338,1741193444700,-500.0,0.0003863,9]
[355472340,1741193444709,-500.0,0.0003863,9]
[355472342,1741193444718,-500.0,0.0003863,9]
[355472344,1741193444727,-500.0,0.0003863,9]
[355472346,1741193444737,-500.0,0.0003863,9]
[355472348,1741193444746,-500.0,0.0003863,9]
[355472350,1741193444755,-500.0,0.0003863,9]
[355472352,1741193444764,-500.0,0.0003863,9]
[355472354,1741193444773,-500.0,0.0003863,9]
[355472356,1741193444783,-606.41,0.0003863,9]
[355472358,1741193444792,-500.0,0.0003863,9]
[355472360,1741193444802,-500.0,0.0003863,9]
[355472362,1741193444811,-564.69,0.0003863,9]
[355472363,1741193444820,-454.00289106,0.0003863,9]
[355472365,1741193444830,-930.8,0.0003863,9]
[355472367,1741193444839,-504.2022944,0.0003863,9]
[355472369,1741193444848,-518.16,0.0003863,9]
[355472371,1741193444857,-500.0,0.0003863,9]
[355472373,1741193444866,-500.0,0.0003863,9]
[355472375,1741193444876,-500.0,0.0003863,9]
[355472377,1741193444885,-503.27837711,0.0003863,9]
[355472379,1741193444895,-613.3,0.0003863,9]
[355472381,1741193444904,-500.0,0.0003863,9]
[355472383,1741193444913,-500.0,0.0003863,9]
[355472385,1741193444923,-500.0,0.0003863,9]
[355472387,1741193444932,-500.0,0.0003863,9]
[355472389,1741193444941,-500.0,0.0003863,9]
[355472391,1741193444951,-500.0,0.0003863,9]
[355472393,1741193444961,-500.0,0.0003863,9]
[355472399,1741193445011,-508.33392248,0.0003863,9]
[355472401,1741193445021,-500.0,0.0003863,9]
[355472403,1741193445030,-500.0,0.0003863,9]
[355472405,1741193445040,-500.0,0.0003863,9]
[355472407,1741193445050,-500.0,0.0003863,9]
[355472409,1741193445059,-1100.83,0.0003863,9]
[355472411,1741193445069,-509.86104198,0.0003863,9]
[355472413,1741193445080,-500.0,0.0003863,9]
[355472415,1741193445090,-500.0,0.0003863,9]
[355472417,1741193445100,-500.0,0.0003863,9]
[355472419,1741193445109,-500.0,0.0003863,9]
[355472421,1741193445119,-500.0,0.0003863,9]
[355472423,1741193445128,-500.0,0.0003863,9]
[355472425,1741193445138,-500.0,0.0003863,9]
[355472427,1741193445147,-500.0,0.0003863,9]
[355472430,1741193445158,-500.0,0.0003863,9]
[355472432,1741193445167,-500.0,0.0003863,9]
[355472434,1741193445176,-503.97571516,0.0003863,9]
[355472436,1741193445186,-500.0,0.0003863,9]
[355472439,1741193445195,-1892.66,0.0003863,9]
[355472442,1741193445207,-500.0,0.0003863,2]
[355472445,1741193445216,-500.0,0.0003863,9]
[355472448,1741193445225,-509.18897472,0.0003863,9]
[355472449,1741193445234,-507.35641694,0.0003863,9]
[355472451,1741193445244,-173.03983058,0.0003863,9]
[355472453,1741193445254,-690.5,0.0003863,9]
[355472455,1741193445263,-679.55,0.0003863,9]
[355472457,1741193445273,-4060.71,0.0003863,9]
[355472460,1741193445282,-1152.33,0.0003863,9]
[355472463,1741193445292,-1292.02,0.0003863,9]
[355472467,1741193445302,-500.0,0.0003863,9]
[355472469,1741193445312,-500.0,0.0003863,9]
[355472470,1741193445322,-500.0,0.0003863,9]
[355472472,1741193445331,-950.8,0.0003863,9]
[355472474,1741193445342,-500.0,0.0003863,9]
[355472476,1741193445351,-468.89391572,0.0003863,9]
[355472478,1741193445360,-682.26,0.0003863,9]
[355472480,1741193445369,-500.0,0.0003863,9]
[355472482,1741193445378,-542.28040176,0.0003863,9]
[355472484,1741193445388,-500.0,0.0003863,9]
[355472486,1741193445398,-500.0,0.0003863,9]
[355472488,1741193445407,-725.62,0.0003863,9]
[355472490,1741193445416,-500.0,0.0003863,9]
[355472492,1741193445425,-500.0,0.0003863,9]
[355472494,1741193445434,-564.95,0.0003863,9]
[355472496,1741193445443,-500.0,0.0003863,9]
[355472498,1741193445453,-500.0,0.0003863,9]
[355472500,1741193445462,-13137.52,0.0003863,9]
[355472502,1741193445471,-500.0,0.0003863,9]
[355472504,1741193445480,-500.0,0.0003863,9]
[355472506,1741193445489,-354.26304312,0.0003863,9]
[355472508,1741193445499,-771.54,0.0003863,9]
[355472510,1741193445507,-500.0,0.0003863,9]
[355472512,1741193445517,-529.89642877,0.0003863,9]
[355472514,1741193445526,-712.45,0.0003863,9]
[355472516,1741193445535,-510.74726545,0.0003863,9]
[355472518,1741193445544,-500.0,0.0003863,9]
[355472520,1741193445554,-500.0,0.0003863,9]
[355472522,1741193445563,-500.0,0.0003863,9]
[355472523,1741193445572,-500.0,0.0003863,9]
[355472525,1741193445582,-500.0,0.0003863,9]
[355472528,1741193445593,-500.0,0.0003863,9]
[355472529,1741193445604,-6700.09,0.0003863,9]
[355472531,1741193445613,-1345.69,0.0003863,9]
[355472533,1741193445622,-500.0,0.0003863,9]
[355472535,1741193445631,-1675.15,0.0003863,9]
[355472537,1741193445641,-5352.08,0.0003863,9]
[355472539,1741193445650,-677.55,0.0003863,9]
[355472541,1741193445659,-570.35,0.0003863,9]
[355472543,1741193445669,-500.0,0.0003863,9]
[355472545,1741193445678,-500.0,0.0003863,9]
[355472547,1741193445687,-500.0,0.0003863,9]
[355472549,1741193445696,-500.0,0.0003863,9]
[355472551,1741193445706,-500.0,0.0003863,9]
[355472553,1741193445715,-1313.7,0.0003863,9]
[355472555,1741193445725,-500.0,0.0003863,9]
[355472557,1741193445734,-500.0,0.0003863,9]
[355472560,1741193445752,-500.0,0.0003863,9]
[355472562,1741193445764,-500.0,0.0003863,9]
[355472564,1741193445774,-500.0,0.0003863,9]
[355472566,1741193445783,-1001.1,0.0003863,9]
[355472568,1741193445793,-500.0,0.0003863,9]
[355472570,1741193445803,-2658.19,0.0003863,9]
[355472572,1741193445815,-500.0,0.0003863,9]
[355472574,1741193445824,-500.0,0.0003863,9]
[355472576,1741193445833,-1081.26,0.0003863,9]
[355472579,1741193445845,-500.0,0.0003863,9]
[355472581,1741193445856,-1246.85,0.0003863,9]
[355472583,1741193445866,-500.0,0.0003863,9]
[355472584,1741193445875,-500.0,0.0003863,9]
[355472585,1741193445884,-500.0,0.0003863,9]
[355472586,1741193445894,-500.0,0.0003863,9]
[355472587,1741193445903,-500.0,0.0003863,9]
[355472588,1741193445913,-500.0,0.0003863,9]
[355472589,1741193445922,-500.0,0.0003863,9]
[355472590,1741193445931,-500.0,0.0003863,9]
[355472592,1741193445941,-500.0,0.0003863,9]
[355472594,1741193445950,-1095.17,0.0003863,9]
[355472596,1741193445961,-526.11,0.0003863,9]
[355472598,1741193445972,-500.0,0.0003863,9]
[355472600,1741193445982,-500.0,0.0003863,9]
[355472602,1741193445992,-500.0,0.0003863,9]
[355472604,1741193446006,-500.0,0.0003863,9]
[355472606,1741193446015,-500.0,0.0003863,9]
[355472608,1741193446025,-655.54,0.0003863,9]
[355472610,1741193446035,-500.0,0.0003863,9]
[355472612,1741193446046,-500.0,0.0003863,9]
[355472614,1741193446056,-1731.22,0.0003863,9]
[355472617,1741193446065,-500.0,0.0003863,9]
[355472618,1741193446077,-500.0,0.0003863,9]
[355472620,1741193446086,-500.0,0.0003863,9]
[355472622,1741193446097,-677.85,0.0003863,9]
[355472624,1741193446106,-500.0,0.0003863,9]
[355472626,1741193446116,-500.0,0.0003863,9]
[355472628,1741193446126,-500.0,0.0003863,9]
[355472631,1741193446135,-500.0,0.0003863,9]
[355472633,1741193446145,-151.0,0.0003863,14]
[355472635,1741193446154,-151.0,0.0003863,14]
[355472637,1741193446165,-500.0,0.0003863,9]
[355472639,1741193446174,-787.85,0.0003863,9]
[355472641,1741193446183,-500.0,0.0003863,9]
[355472643,1741193446194,-5043.64,0.0003863,9]
[355472645,1741193446203,-500.0,0.0003863,9]
[355472647,1741193446213,-1556.37,0.0003863,9]
[355472649,1741193446222,-500.0,0.0003863,9]
[355472651,1741193446231,-500.0,0.0003863,9]
[355472653,1741193446240,-845.58,0.0003863,9]
[355472655,1741193446250,-151.0,0.0003863,14]
[355472657,1741193446259,-500.0,0.0003863,9]
[355472659,1741193446268,-500.0,0.0003863,9]
[355472660,1741193446278,-500.0,0.0003863,9]
[355472662,1741193446288,-500.0,0.0003863,9]
[355472664,1741193446297,-500.0,0.0003863,9]
[355472666,1741193446306,-4634.0,0.0003863,9]
[355472668,1741193446315,-162.605258,0.0003863,14]
[355472670,1741193446324,-500.0,0.0003863,9]
[355472672,1741193446334,-5156.56,0.0003863,9]
[355472674,1741193446345,-500.0,0.0003863,9]
[355472676,1741193446354,-500.0,0.0003863,9]
[355472678,1741193446363,-500.0,0.0003863,9]
[355472680,1741193446373,-500.0,0.0003863,9]
[355472682,1741193446382,-500.0,0.0003863,9]
[355472685,1741193446392,-565.23,0.0003863,9]
[355472687,1741193446401,-580.59,0.0003863,9]
[355472689,1741193446411,-500.0,0.0003863,9]
[355472691,1741193446421,-1555.81,0.0003863,9]
[355472693,1741193446431,-500.0,0.0003863,9]
[355472695,1741193446441,-500.0,0.0003863,9]
[355472697,1741193446451,-500.0,0.0003863,9]
[355472699,1741193446461,-3212.79,0.0003863,9]
[355472701,1741193446471,-500.0,0.0003863,9]
[355472703,1741193446482,-500.0,0.0003863,9]
[355472705,1741193446492,-692.02,0.0003863,9]
[355472707,1741193446501,-500.0,0.0003863,9]
[355472709,1741193446511,-620.9,0.0003863,9]
[355472711,1741193446523,-96087.64,0.0003863,7]
[355472714,1741193446533,-615.57686428,0.0003863,9]
[355472716,1741193446543,-500.0,0.0003863,9]
[355472718,1741193446553,-500.0,0.0003863,9]
[355472720,1741193446562,-500.0,0.0003863,9]
[355472722,1741193446572,-5902.74,0.0003863,9]
[355472724,1741193446582,-8250.54,0.0003863,9]
[355472726,1741193446594,-500.0,0.0003863,9]
[355472728,1741193446604,-500.0,0.0003863,9]
[355472730,1741193446614,-500.0,0.0003863,9]
[355472732,1741193446623,-500.0,0.0003863,9]
[355472734,1741193446633,-500.0,0.0003863,9]
[355472736,1741193446643,-500.0,0.0003863,9]
[355472738,1741193446654,-500.0,0.0003863,9]
[355472740,1741193446665,-500.0,0.0003863,9]
[355472742,1741193446677,-3900.72,0.0003863,9]
[355472744,1741193446687,-2116.15,0.0003863,9]
[355472746,1741193446698,-500.0,0.0003863,9]
[355472748,1741193446708,-500.0,0.0003863,9]
[355472751,1741193446718,-416.32822481,0.0003863,9]
[355472753,1741193446728,-190.57021611,0.0003863,9]
[355472755,1741193446738,-500.0,0.0003863,9]
[355472757,1741193446747,-500.0,0.0003863,9]
[355472759,1741193446757,-1203.66,0.0003863,9]
[355472761,1741193446767,-583.15,0.0003863,9]
[355472763,1741193446777,-500.0,0.0003863,9]
[355472765,1741193446787,-779.82,0.0003863,9]
[355472767,1741193446796,-500.0,0.0003863,9]
[355472769,1741193446806,-1497.03,0.0003863,9]
[355472771,1741193446815,-229.07487815,0.0003863,9]
[355472773,1741193446825,-500.0,0.0003863,9]
[355472775,1741193446835,-500.0,0.0003863,9]
[355472777,1741193446846,-1072.27,0.0003863,9]
[355472779,1741193446856,-500.0,0.00038673,5]
[355472781,1741193446866,-160.02183736,0.00038673,5]
[355472783,1741193446876,-159.58273539,0.00038673,2]
[355472785,1741193446886,-500.0,0.00038673,5]
[355472787,1741193446896,-500.0,0.00038673,5]
[355472789,1741193446906,-500.0,0.00038673,5]
[355472791,1741193446916,-500.0,0.00038673,5]
[355472793,1741193446926,-156.51490957,0.00038673,5]
[355472795,1741193446935,-293.51800001,0.00038673,5]
[355472797,1741193446945,-6164.86837815,0.000388,2]
[355472799,1741193446956,-150.0,0.00038869,2]
[355472802,1741193446966,-416199.90219927,0.000389,15]
[355472804,1741193446976,-151.0,0.000389,14]
[355472806,1741193446985,-198.672571,0.000389,14]
[355472808,1741193446995,-151.0,0.000389,14]
[355472810,1741193447009,-153.495498,0.000389,14]
[355472812,1741193447019,-176.699889,0.000389,14]
[355472814,1741193447029,-151.0,0.000389,14]
[355472816,1741193447039,-151.0,0.000389,14]
[355472818,1741193447050,-500.0,0.00038904,9]
[355472820,1741193447060,-500.0,0.00038904,9]
[355472822,1741193447070,-500.0,0.00038904,9]
[355472824,1741193447081,-500.0,0.00038904,9]
[355472826,1741193447092,-500.0,0.00038904,9]
[355472828,1741193447103,-500.0,0.00038904,9]
[355472830,1741193447112,-500.0,0.00038904,9]
[355472832,1741193447122,-500.0,0.00038904,9]
[355472834,1741193447132,-500.0,0.00038904,9]
[355472836,1741193447141,-500.0,0.00038904,9]
[355472838,1741193447152,-525.97,0.00038904,9]
[355472840,1741193447164,-500.0,0.00038904,9]
[355472842,1741193447174,-500.0,0.00038904,9]
[355472845,1741193447184,-500.0,0.00038904,9]
[355472847,1741193447194,-500.0,0.00038904,9]
[355472849,1741193447204,-644.67499654,0.00038904,9]
[355472851,1741193447214,-500.0,0.00038904,9]
[355472853,1741193447224,-500.0,0.00038904,9]
[355472855,1741193447234,-500.0,0.00038904,9]
[355472857,1741193447244,-500.0,0.00038904,9]
[355472859,1741193447253,-500.0,0.00038904,9]
[355472861,1741193447263,-500.0,0.00038904,9]
[355472863,1741193447273,-500.0,0.00038904,9]
[355472865,1741193447283,-500.0,0.00038904,9]
[355472867,1741193447294,-500.0,0.00038904,9]
[355472869,1741193447304,-500.0,0.00038904,9]
[355472872,1741193447316,-500.0,0.00038904,9]
[355472874,1741193447327,-255.653732,0.00038904,14]
[355472876,1741193447336,-500.0,0.00038904,9]
[355472878,1741193447346,-798.37,0.00038904,9]
[355472880,1741193447355,-500.0,0.00038904,9]
[355472882,1741193447365,-680.63,0.00038904,9]
[355472884,1741193447375,-500.0,0.00038904,9]
[355472886,1741193447384,-595.64,0.00038904,9]
[355472889,1741193447396,-500.0,0.00038904,9]
[355472891,1741193447406,-509.94600122,0.00038904,9]
[355472893,1741193447416,-500.0,0.00038904,9]
[355472895,1741193447426,-515.01520578,0.00038904,9]
[355472897,1741193447435,-258.3986419,0.00038904,9]
[355472899,1741193447444,-500.0,0.00038904,9]
[355472901,1741193447454,-500.0,0.00038904,9]
[355472903,1741193447464,-500.0,0.00038904,9]
[355472905,1741193447474,-500.0,0.00038904,9]
[355472907,1741193447483,-194.0705431,0.00038904,9]
[355472909,1741193447493,-500.0,0.00038904,9]
[355472911,1741193447504,-500.0,0.00038904,9]
[355472913,1741193447514,-500.0,0.00038904,9]
[355472915,1741193447523,-500.0,0.00038904,9]
[355472917,1741193447534,-762.21,0.00038904,9]
[355472919,1741193447544,-500.0,0.00038904,9]
[355472921,1741193447554,-500.0,0.00038904,9]
[355472923,1741193447564,-500.0,0.00038904,9]
[355472925,1741193447574,-541.37077394,0.00038904,9]
[355472927,1741193447584,-619.95,0.00038904,9]
[355472930,1741193447595,-500.0,0.00038904,9]
[355472932,1741193447605,-500.0,0.00038904,9]
[355472934,1741193447615,-500.0,0.00038904,9]
[355472936,1741193447625,-500.0,0.00038904,9]
[355472938,1741193447636,-500.0,0.00038904,9]
[355472940,1741193447646,-503.82974798,0.00038904,9]
[355472942,1741193447656,-500.0,0.00038904,9]
[355472944,1741193447670,-500.0,0.00038904,9]
[355472946,1741193447680,-500.0,0.00038904,9]
[355472948,1741193447690,-500.0,0.00038904,9]
[355472950,1741193447701,-500.0,0.00038904,9]